Workbook

Sheet 2023
A1: Shady Pines RV Park
A2: Profit & Loss
A3: January through December 2023
B4: 2023-01-01 | C4: 2023-02-01 | D4: 2023-03-01 | E4: 2023-04-01 | F4: 2023-05-01 | G4: 2023-06-01 | H4: 2023-07-01 | I4: 2023-08-01 | J4: 2023-09-01 | K4: 2023-10-01 | L4: 2023-11-01 | M4: 2023-12-01 | N4: Total
A5: Rental Income | B5: 3194.4 | C5: 2014.9 | D5: 4149.6 | E5: 3429.4 | F5: 4613.9 | G5: 8111.95 | H5: 6880 | I5: 5609.8 | J5: 5678 | K5: 10718 | L5: 8227.2 | M5: 4514 | N5: =SUM(B5:M5) -> 67141.15
A7: Total Income | B7: 3194.4 | C7: 2014.9 | D7: 4149.6 | E7: 3429.4 | F7: 4613.9 | G7: 8111.95 | H7: 6880 | I7: 5609.8 | J7: 5678 | K7: 10718 | L7: 8227.2 | M7: 4514 | N7: =SUM(B7:M7) -> 67141.15
A9: RV Park Expenses
A10: Repairs and Maintenance | B10: 0 | C10: 0 | D10: 0 | E10: 0 | F10: 0 | G10: 0 | H10: 0 | I10: 0 | J10: 0 | K10: 1587.01 | L10: 0 | M10: 400 | N10: =SUM(B10:M10) -> 1987.01
A11: Small Tools and Equipment | B11: 0 | C11: 0 | D11: 0 | E11: 1000 | F11: 0 | G11: 0 | H11: 0 | I11: 0 | J11: 0 | K11: 0 | L11: 0 | M11: 0 | N11: =SUM(B11:M11) -> 1000
A12: Insurance | B12: 0 | C12: 0 | D12: 0 | E12: 0 | F12: 0 | G12: 0 | H12: 236.74 | I12: 0 | J12: 0 | K12: 0 | L12: 0 | M12: 0 | N12: =SUM(B12:M12) -> 236.74
A13: Utilities | B13: 1578.07 | C13: 1105.03 | D13: 1121.63 | E13: 860.98 | F13: 1054.81 | G13: 1068.95 | H13: 1442.84 | I13: 2124.16 | J13: 2197.93 | K13: 1842.89 | L13: 1699.83 | M13: 1485.38 | N13: =SUM(B13:M13) -> 17582.5
A15: Total Expenses | B15: =SUM(B10:B14) -> 1578.07 | C15: =SUM(C10:C14) -> 1105.03 | D15: =SUM(D10:D14) -> 1121.63 | E15: =SUM(E10:E14) -> 1860.98 | F15: =SUM(F10:F14) -> 1054.81 | G15: =SUM(G10:G14) -> 1068.95 | H15: =SUM(H10:H14) -> 1679.58 | I15: =SUM(I10:I14) -> 2124.16 | J15: =SUM(J10:J14) -> 2197.93 | K15: =SUM(K10:K14) -> 3429.9 | L15: =SUM(L10:L14) -> 1699.83 | M15: =SUM(M10:M14) -> 1885.38 | N15: =SUM(N10:N13) -> 20806.25
A17: Net Income | N17: =SUM(N7-N15) -> 46334.9
A19: Additiional Expense for Build Out
A20: Subcontractors | B20: 2400 | C20: 3200 | D20: 2700 | E20: 2900 | F20: 4150 | G20: 4040 | H20: 1200 | I20: 300 | J20: 600 | K20: 1300 | L20: 0 | M20: 760 | N20: =SUM(B20:M20) -> 23550
A21: Supplies & Materials | B21: 3607.12 | C21: 838.64 | D21: 3064.97 | E21: 2108.25 | F21: 3555.98 | G21: 3590.47 | H21: 2067.52 | I21: 30.29 | J21: 253.06 | K21: 3387.96 | L21: 2228.7 | M21: 218.32 | N21: =SUM(B21:M21) -> 24951.28
A23: Additional Total Build Out Expenses | N23: =SUM(N20:N22) -> 48501.28

Sheet 2024
A1: Shady Pines RV Park
A2: Profit & Loss
A3: January through December 2023
B4: 2024-01-01 | C4: 2024-02-01 | D4: 2024-03-01 | E4: 2024-04-01 | F4: 2024-05-01 | G4: 2024-06-01 | H4: 2024-07-01 | I4: 2024-08-01 | J4: 2024-09-01 | K4: 2024-10-01 | L4: 2024-11-01 | M4: 2024-12-01 | N4: Total
A5: Rental Income | B5: 8801.6 | C5: 6259.2 | D5: 9092 | E5: 6444 | F5: 8124.11 | G5: 0 | H5: 0 | I5: 0 | J5: 0 | K5: 0 | L5: 0 | M5: 0 | N5: =SUM(B5:M5) -> 38720.91
A7: Total Income | B7: 8801.6 | C7: 6259.2 | D7: 9092 | E7: 6444 | F7: 8124.11 | G7: 0 | H7: 0 | I7: 0 | J7: 0 | K7: 0 | L7: 0 | M7: 0 | N7: =SUM(B7:M7) -> 38720.91
A9: RV Park Expenses
A10: Repairs and Maintenance | B10: 0 | C10: 184.27 | D10: 0 | E10: 0 | F10: 0 | G10: 0 | H10: 0 | I10: 0 | J10: 0 | K10: 0 | L10: 0 | M10: 0 | N10: =SUM(B10:M10) -> 184.27
A11: Small Tools and Equipment | B11: 0 | C11: 0 | D11: 0 | E11: 0 | F11: 0 | G11: 0 | H11: 0 | I11: 0 | J11: 0 | K11: 0 | L11: 0 | M11: 0 | N11: =SUM(B11:M11) -> 0
A12: Insurance | B12: 1514.32 | C12: 0 | D12: 0 | E12: 0 | F12: 0 | G12: 0 | H12: 0 | I12: 0 | J12: 0 | K12: 0 | L12: 0 | M12: 0 | N12: =SUM(B12:M12) -> 1514.32
A13: Utilities | B13: 1436.96 | C13: 1724.46 | D13: 1697.76 | E13: 1545.43 | F13: 1548.74 | G13: 0 | H13: 0 | I13: 0 | J13: 0 | K13: 0 | L13: 0 | M13: 0 | N13: =SUM(B13:M13) -> 7953.35
A15: Total Expenses | N15: =SUM(N10:N14) -> 9651.94
A17: Net Income | N17: =SUM(N7-N15) -> 29068.97
A19: Additiional Expense for Build Out
A20: Subcontractors | C20: 5800 | D20: 2950 | E20: 150 | F20: 1000 | G20: 0 | H20: 0 | I20: 0 | J20: 0 | K20: 0 | L20: 0 | M20: 0 | N20: =SUM(B20:M20) -> 9900
A21: Supplies & Materials | B21: 1096.16 | C21: 6234.86 | D21: 1367.6 | E21: 412.44 | F21: 1941.57 | G21: 0 | H21: 0 | I21: 0 | J21: 0 | K21: 0 | L21: 0 | M21: 0 | N21: =SUM(B21:M21) -> 11052.63
A23: Additional Total Build Out Expenses | N23: =SUM(N20:N22) -> 20952.63
